bitfinex-derivatives/quotes_ETHF0:USTF0_20260203
["timestamp","ask_amount","ask_price","bid_price","bid_amount"]
[1770149667556,2.40536303,2191.7,2191.0,0.00440745]
[1770149668155,2.40536303,2191.7,2191.1,0.00440745]
[1770149668355,2.40536303,2191.7,2191.0,0.00440745]
[1770149668652,3.121,2191.8,2191.2,0.00440745]
[1770149668856,0.00431651,2191.9,2191.4,0.00440745]
[1770149668857,5.53067954,2191.9,2191.4,0.00440745]
[1770149669051,5.53067954,2191.9,2191.2,0.00440745]
[1770149669453,5.53067954,2191.9,2191.3,0.00440745]
[1770149669656,2.40967954,2191.9,2191.2,0.00440745]
[1770149669854,2.40967954,2191.9,2191.1,0.00440745]
[1770149670255,2.40967954,2191.9,2190.7,2.54307376]
[1770149670550,2.40536303,2191.7,2190.6,0.00970732]
[1770149670748,2.40536303,2191.2,2190.6,0.00529987]
[1770149671652,2.40536303,2191.2,2190.8,0.00440745]
[1770149671854,2.63378303,2191.6,2190.8,0.00440745]
[1770149672049,2.63378303,2191.6,2190.9,0.00440745]
[1770149672250,2.63378303,2191.6,2190.8,0.00440745]
[1770149672251,2.40536303,2191.6,2190.8,0.00440745]
[1770149672449,2.40536303,2191.6,2190.9,0.00440745]
[1770149672654,3.121,2191.8,2191.0,0.00440745]
[1770149672851,2.40967954,2191.9,2191.0,2.54748121]
[1770149673055,2.40536303,2191.7,2191.0,0.00440745]
[1770149673250,2.40536303,2191.7,2191.2,0.00440745]
[1770149673454,2.40536303,2191.7,2191.0,0.00440745]
[1770149673662,2.63378303,2191.7,2190.6,0.00529987]
[1770149673960,2.40536303,2191.5,2190.6,0.00529987]
[1770149674460,2.40536303,2191.5,2190.7,2.54748121]
[1770149674660,2.40536303,2191.5,2190.9,0.00440745]
[1770149675058,2.40536303,2191.5,2191.0,0.00440745]
[1770149675262,2.40536303,2191.5,2190.9,0.00440745]
[1770149675759,2.40536303,2191.5,2191.0,0.00440745]
[1770149675958,2.40536303,2191.5,2190.9,0.00440745]
[1770149676359,2.40536303,2191.5,2191.0,0.00440745]
[1770149676560,2.40536303,2191.5,2190.9,0.00440745]
[1770149677060,2.40536303,2191.7,2191.0,0.00440745]
[1770149677261,2.40536303,2191.7,2190.8,0.00440745]
[1770149677460,2.40536303,2191.7,2190.9,0.00440745]
[1770149677860,2.40536303,2191.7,2191.0,0.00440745]
[1770149678060,2.40536303,2191.7,2190.9,0.00440745]
[1770149678263,5.75478303,2191.7,2190.9,0.00440745]
[1770149678463,2.40536303,2191.6,2190.6,0.00529987]
[1770149678861,2.40536303,2191.3,2190.6,0.00529987]
[1770149679357,2.40536303,2191.3,2190.7,0.00440745]
[1770149679563,2.40536303,2191.3,2190.8,0.00440745]
[1770149679756,2.40536303,2191.3,2190.7,0.00440745]
[1770149680162,2.40536303,2191.3,2190.8,0.00440745]
[1770149680363,2.40536303,2191.3,2190.7,0.00440745]
[1770149680664,2.63379303,2191.6,2190.9,0.00440745]
[1770149680962,2.63379303,2191.6,2190.7,2.54748121]
[1770149681163,2.63379303,2191.6,2190.8,0.00440745]
[1770149681556,2.63379303,2191.6,2190.9,0.00440745]
[1770149681759,2.63379303,2191.6,2190.8,0.00440745]
[1770149682160,2.63379303,2191.6,2190.9,0.00440745]
[1770149682561,2.63379303,2191.6,2191.0,0.00440745]
[1770149682762,2.63379303,2191.6,2190.9,0.00440745]
[1770149683268,2.63379303,2191.6,2191.0,0.00440745]
[1770149683463,3.121,2191.7,2190.6,0.00529987]
[1770149683464,2.40536303,2191.4,2190.6,0.00529987]
[1770149683663,2.63381303,2191.4,2190.6,0.00529987]
[1770149684667,5.75481303,2191.4,2190.6,0.00529987]
[1770149684866,2.40536303,2191.3,2190.6,0.00529987]
[1770149686767,2.40536303,2191.3,2190.6,2.54837363]
[1770149686968,2.40536303,2191.3,2190.6,0.00529987]
[1770149688169,2.63382303,2191.3,2190.6,0.00529987]
[1770149688866,2.63385303,2191.1,2190.1,9.45153438]
[1770149689067,2.63385303,2191.1,2190.0,2.66802488]
[1770149689267,2.63385303,2191.1,2189.9,6.44633175]
[1770149689268,2.40536303,2190.8,2189.9,2.66802488]
[1770149689569,2.40536303,2190.6,2189.6,5.21109864]
[1770149689767,2.40536303,2190.6,2189.6,2.66802488]
[1770149689965,2.40536303,2190.4,2189.6,0.00347079]
[1770149690166,2.63391303,2190.4,2189.6,0.00347079]
[1770149690567,2.47664145,2190.2,2189.6,0.00347079]
[1770149690761,2.48154881,2190.2,2189.6,0.00347079]
[1770149691474,0.00490736,2190.2,2189.6,2.41358263]
[1770149692976,2.47664145,2190.8,2189.6,2.41358263]
[1770149693674,2.47664145,2190.8,2189.8,2.41011184]
[1770149693976,2.48042644,2190.8,2189.8,2.41011184]
[1770149694370,2.49709719,2191.4,2190.3,0.22856]
[1770149694572,2.49709719,2191.4,2190.5,2.47847775]
[1770149694776,2.49709719,2191.8,2190.5,2.47847775]
[1770149695474,2.50119066,2191.8,2190.5,2.47847775]
[1770149696068,0.00409347,2191.8,2190.8,2.47847775]
[1770149696276,3.0738,2191.9,2191.1,2.66802488]
[1770149696474,3.0738,2191.9,2191.3,2.47847775]
[1770149697073,5.44164883,2193.0,2191.3,2.47847775]
[1770149697074,2.49709719,2192.7,2191.6,1.51631092]
[1770149697372,0.00591616,2192.7,2191.7,1.51631092]
[1770149697771,0.00591616,2192.7,2191.8,1.51631092]
[1770149697972,0.00591616,2192.7,2191.9,4.19531092]
[1770149698274,2.50301335,2192.7,2191.9,2.679]
[1770149698867,4.3892,2193.8,2192.0,1.54029759]
[1770149699070,2.49709719,2193.6,2192.4,1.53438143]
[1770149699269,2.49709719,2193.6,2192.5,1.53438143]
[1770149699570,2.49709719,2193.6,2192.6,4.21338143]
[1770149699875,2.50260971,2193.6,2192.6,4.21338143]
[1770149700268,2.50260971,2193.6,2192.2,2.679]
[1770149700472,2.50260971,2193.6,2192.2,3.90116444]
[1770149700669,2.49709719,2193.4,2192.2,3.90116444]
[1770149700974,2.49709719,2193.4,2191.9,3.90016444]
[1770149701169,2.49709719,2193.2,2191.6,8.00345355]
[1770149701374,2.49709719,2193.2,2191.7,1.22216444]
[1770149701569,2.49709719,2193.2,2191.8,0.2284]
[1770149701875,2.49709719,2193.2,2191.9,1.22216444]
[1770149702170,2.49709719,2193.2,2192.0,3.83036707]
[1770149702374,2.49709719,2193.2,2192.0,2.678]
[1770149702675,2.49709719,2193.2,2191.8,5.49076707]
[1770149702676,2.49709719,2193.2,2191.9,3.83036707]
[1770149703572,2.49709719,2193.2,2191.6,1.1556313]
[1770149703776,2.49709719,2192.6,2191.6,0.00326423]
[1770149704472,2.49709719,2192.3,2190.7,1.32149273]
[1770149704776,2.49709719,2192.0,2190.9,1.32149273]
[1770149705477,0.00371941,2192.0,2190.9,1.55380152]
[1770149705776,2.49709719,2193.0,2191.4,1.31777332]
[1770149705974,2.72537719,2193.0,2191.4,1.31777332]
[1770149706175,2.72537719,2193.0,2191.3,1.54905228]
[1770149706577,2.73051577,2193.0,2191.3,1.54905228]
[1770149708181,2.73051577,2193.0,2191.0,1.35643806]
[1770149708182,2.49709719,2192.6,2191.0,1.35643806]
[1770149708381,2.49709719,2192.4,2191.0,4.03443806]
[1770149708776,2.49709719,2192.4,2191.0,2.678]
[1770149709182,2.49709719,2192.9,2191.4,1.35643806]
[1770149709380,2.49709719,2192.9,2191.4,1.58487806]
[1770149709580,2.49709719,2192.9,2191.6,1.35643806]
[1770149710082,2.49709719,2192.9,2191.6,1.58485806]
[1770149710682,2.49709719,2192.9,2191.8,1.38504135]
[1770149710881,2.49709719,2192.9,2191.9,1.38504135]
[1770149712479,0.00513858,2193.0,2191.9,1.61343135]
[1770149712676,2.50223577,2193.0,2191.9,1.61343135]
[1770149713482,2.50223577,2193.0,2191.9,1.42888477]
[1770149713776,2.3962,2193.5,2191.9,1.42888477]
[1770149713981,2.3962,2193.5,2192.7,1.42374619]
[1770149714175,4.89329719,2193.5,2192.3,0.22835]
[1770149714478,2.3962,2193.5,2192.6,1.4184399]
[1770149714684,2.3962,2193.5,2192.7,1.4184399]
[1770149714979,2.40124222,2193.5,2192.7,1.65249688]
[1770149715178,2.54709719,2193.8,2192.7,0.00574698]
[1770149715877,2.55584346,2193.3,2192.1,2.677]
[1770149716077,2.55584346,2193.0,2191.8,4.109]
[1770149716876,2.55584346,2193.0,2191.8,4.11298871]
[1770149716877,2.56059049,2193.0,2191.8,4.11298871]
[1770149717081,2.56059049,2193.0,2191.9,0.22839]
[1770149718585,2.56059049,2193.0,2191.8,4.11298871]
[1770149719681,2.56059049,2193.0,2191.9,0.22839]
[1770149720388,2.56059049,2193.0,2191.8,6.78101359]
[1770149720982,2.56059049,2193.0,2191.8,10.9666055]
[1770149721380,0.00474703,2193.0,2192.4,0.22834]
[1770149721586,7.03e-06,2193.0,2192.4,2.90534]
[1770149721786,0.05,2193.8,2192.4,2.677]
[1770149722087,2.60463354,2193.8,2192.7,0.2283]
[1770149722689,2.61040806,2193.8,2192.5,2.66802488]
[1770149722889,2.61040806,2193.8,2192.4,5.34502488]
[1770149723089,2.61040806,2193.8,2192.4,2.677]
[1770149723290,2.55463354,2193.3,2192.4,2.677]
[1770149724089,2.55463354,2193.3,2192.4,5.34502488]
[1770149724288,2.55463354,2193.3,2192.5,2.66802488]
[1770149724484,3.17677452,2193.8,2192.6,2.66802488]
[1770149724485,2.55463354,2193.6,2192.6,2.66802488]
[1770149724683,2.55463354,2193.6,2192.7,0.22831]
[1770149724884,2.55463354,2193.6,2192.7,2.89633488]
[1770149725086,2.55463354,2193.6,2192.7,0.22831]
[1770149725283,2.55463354,2193.6,2192.7,2.89633488]
[1770149726785,2.55463354,2193.6,2192.6,3.90325799]
[1770149726786,2.55463354,2193.6,2192.4,5.34502488]
[1770149727290,2.55463354,2193.6,2192.4,2.677]
[1770149727491,2.55463354,2193.6,2192.4,2.90534]
[1770149727691,15.95773883,2194.8,2193.2,0.33964576]
[1770149727893,12.20643443,2195.2,2193.1,2.66802488]
[1770149727894,4.107,2195.2,2193.7,0.2282]
[1770149728087,4.107,2195.2,2193.8,2.66802488]
[1770149728390,0.22804,2195.3,2193.8,2.89621488]
[1770149728586,0.22804,2195.3,2193.8,4.2081399]
[1770149728791,0.23157034,2195.3,2193.8,0.00495465]
[1770149728986,0.00353034,2195.3,2193.8,0.00495465]
[1770149729184,0.22807,2195.1,2193.8,0.00495465]
[1770149729588,0.00353034,2195.3,2193.9,0.22818]
[1770149729893,2.41029607,2195.2,2194.0,2.676]
[1770149731288,2.41029607,2195.2,2194.0,2.97140479]
[1770149731688,2.41029607,2195.2,2194.0,2.676]
[1770149732889,2.41029607,2195.2,2194.0,2.98888798]
[1770149733493,2.41029607,2195.2,2194.0,2.676]
[1770149733689,2.41029607,2195.2,2194.0,2.98888798]
[1770149733892,2.39597291,2195.3,2194.3,0.22813]
[1770149734797,2.39597291,2195.3,2194.3,0.57056117]
[1770149735095,2.39981595,2195.3,2194.3,0.57056117]
[1770149735298,2.39981595,2195.3,2194.1,4.106]
[1770149735597,0.22806,2195.1,2193.8,0.00495465]
[1770149735994,2.39440524,2195.0,2193.8,0.00495465]
[1770149736498,2.39440524,2195.0,2193.8,0.23314465]
[1770149736698,2.39440524,2195.0,2194.1,0.22816]
[1770149737793,2.39440524,2195.0,2193.8,0.00495465]
[1770149737994,2.39440524,2194.7,2193.5,2.675]
[1770149738493,2.39440524,2194.5,2193.5,2.675]
[1770149738997,2.39440524,2194.5,2193.5,2.6806273]
[1770149739901,2.39440524,2194.5,2193.5,0.0056273]
[1770149740399,2.39440524,2194.5,2193.2,4.106]
[1770149740700,2.62258524,2194.0,2192.4,2.66802488]
[1770149740998,2.62260524,2193.8,2192.2,5.34302488]
[1770149741199,2.62260524,2193.8,2192.2,5.57138488]
[1770149741400,2.62260524,2193.8,2192.3,6.85963418]
[1770149741596,2.39440524,2193.1,2192.1,3.90325799]
[1770149741803,3.62882491,2193.5,2191.1,3.14688576]
[1770149741804,0.2283,2192.8,2191.1,3.14688576]
[1770149742003,0.2283,2192.8,2190.4,5.63457969]
[1770149742004,2.39440524,2192.5,2190.4,5.63457969]
[1770149742306,2.39440524,2192.4,2190.4,0.22854]
[1770149742500,2.39440524,2192.2,2190.4,0.22854]
[1770149742697,3.62882491,2192.0,2189.5,4.60828003]
[1770149742996,2.39440524,2191.3,2189.5,4.105]
[1770149743504,2.39440524,2191.1,2189.5,4.105]
[1770149743705,2.39440524,2191.1,2189.5,4.11055182]
[1770149743901,2.39440524,2190.7,2189.5,4.11055182]
[1770149744211,2.62292524,2190.7,2189.5,4.11055182]
[1770149744698,2.39440524,2190.3,2189.3,0.22196456]
[1770149744898,2.62296524,2190.3,2188.6,4.105]
[1770149745096,2.62296524,2190.3,2188.2,2.675]
[1770149745402,2.62296524,2190.3,2188.2,3.48981061]
[1770149745597,2.62651356,2190.3,2188.3,0.73531345]
[1770149746004,2.62651356,2190.3,2188.2,2.75928046]
[1770149746396,2.62651356,2190.3,2188.3,0.7159316]
[1770149747403,2.39795356,2190.3,2188.4,0.7159316]
[1770149747598,2.39795356,2190.3,2188.5,0.7159316]
[1770149747802,2.39795356,2190.3,2188.4,0.9446916]
[1770149748205,2.39795356,2190.3,2188.5,0.70425071]
[1770149748406,2.39795356,2190.3,2188.7,0.93297071]
[1770149748702,2.39795356,2190.3,2188.4,0.70425071]
[1770149748903,2.39440524,2189.3,2188.2,0.0037833]
[1770149749207,2.39440524,2189.1,2187.5,2.90585]
[1770149749406,2.39440524,2189.1,2188.2,0.22878]
[1770149749601,0.00354832,2190.3,2187.4,7.73782491]
[1770149749602,2.39440524,2189.7,2188.3,2.678]
[1770149749807,2.39440524,2189.7,2188.4,2.90675]
[1770149750007,2.39440524,2189.7,2188.4,2.91082201]
[1770149750313,2.39440524,2190.0,2188.7,0.22872]
[1770149750808,2.37493251,2190.3,2189.0,0.22869]
[1770149752712,2.37493251,2190.3,2188.4,7.09931265]
[1770149753212,2.37493251,2190.3,2188.5,0.7431673]
[1770149753813,2.37493251,2190.3,2188.6,0.9719073]
[1770149754014,2.37493251,2190.3,2188.8,0.9718773]
[1770149754313,2.37493251,2190.3,2189.1,0.76196077]
[1770149754524,0.00354832,2190.3,2189.5,0.22864]
[1770149754814,0.00354832,2190.3,2189.5,3.66960077]
[1770149755216,2.43047977,2190.3,2189.5,2.679]
[1770149755414,2.43047977,2190.3,2189.4,4.111]
[1770149755612,2.43047977,2190.3,2188.8,2.679]
[1770149759722,2.43047977,2190.3,2189.0,0.97493665]
[1770149760724,2.43047977,2190.3,2189.0,0.22869]
[1770149761819,2.43047977,2190.3,2189.1,0.97072701]
[1770149762121,2.43047977,2190.3,2189.2,0.75499629]
[1770149762427,2.42693145,2191.2,2189.8,0.2286]
[1770149762626,2.42693145,2191.2,2189.3,0.75499629]
[1770149762627,2.42693145,2191.0,2189.3,0.22866]
[1770149762826,2.65544145,2190.8,2188.8,3.43399629]
[1770149763125,2.65544145,2190.8,2188.9,0.98369629]
[1770149763318,2.42693145,2190.6,2188.9,0.2287]
[1770149763926,2.42693145,2190.2,2188.5,4.111]
[1770149764122,2.42693145,2190.2,2188.7,0.96683196]
[1770149764319,2.42693145,2190.2,2189.3,0.22866]
[1770149764519,2.42693145,2190.7,2189.5,0.73811196]
[1770149764827,2.42693145,2191.9,2190.1,0.73811196]
[1770149765125,2.42693145,2191.9,2190.5,0.22854]
[1770149765326,2.42693145,2191.9,2190.6,2.90853]
[1770149765520,2.42693145,2191.9,2190.6,0.22853]
[1770149765718,2.42693145,2191.9,2190.3,2.68]
[1770149765922,2.42693145,2191.9,2190.4,0.96666196]
[1770149765923,2.43243959,2191.9,2190.4,0.96666196]
[1770149766127,2.43243959,2191.9,2190.4,0.22855]
[1770149766325,2.43243959,2191.9,2190.3,0.00486144]
[1770149766527,2.42693145,2191.5,2190.3,0.00486144]
[1770149770026,2.42693145,2191.3,2190.3,0.00486144]
[1770149771326,2.42693145,2191.3,2190.3,0.78076639]
[1770149771525,0.00550814,2191.9,2191.0,0.22848]
[1770149772230,0.00550814,2191.9,2190.7,6.79]
[1770149772425,0.00550814,2191.9,2190.8,4.09317751]
[1770149772625,0.00550814,2191.9,2190.7,8.32692279]
[1770149772827,0.00550814,2191.9,2190.9,1.53690279]
[1770149773128,0.59724057,2192.8,2190.9,1.30840279]
[1770149773129,0.22831,2192.8,2190.9,1.30840279]
[1770149773329,10.40118332,2193.5,2190.8,4.06980584]
[1770149773330,0.36613349,2193.3,2191.1,1.30840279]
[1770149773631,2.42693145,2193.2,2191.5,0.22843]
[1770149774026,2.43231657,2193.2,2191.5,4.20167363]
[1770149774526,2.66057657,2193.2,2191.5,4.20167363]
[1770149774930,2.66057657,2193.2,2191.5,2.90743]
[1770149775328,2.42693145,2193.0,2191.5,0.22843]
[1770149777332,2.65521145,2193.0,2191.5,0.22843]
[1770149778632,2.65521145,2193.0,2191.5,1.55503616]
[1770149780034,2.42693145,2193.0,2191.9,1.55499616]
[1770149780233,2.42693145,2193.0,2191.9,1.55955363]
[1770149780533,0.00538512,2193.2,2192.3,1.37900884]
[1770149780724,2.54908464,2193.2,2192.3,1.37900884]
[1770149781531,2.54908464,2193.2,2192.4,0.22834]
[1770149781830,0.00538512,2193.2,2192.4,0.22834]
[1770149782536,2.54908464,2193.2,2191.9,0.23294747]
[1770149782731,2.54908464,2193.2,2191.9,0.00455747]
[1770149782937,2.54369952,2192.7,2191.9,0.00455747]
[1770149783135,2.54369952,2192.7,2191.6,2.678]
[1770149783436,2.54369952,2192.7,2191.2,0.22846]
[1770149783437,2.77200952,2192.7,2191.2,0.22846]
[1770149783638,2.54369952,2192.5,2190.9,4.109]
[1770149783938,2.54369952,2192.5,2191.1,0.22848]
[1770149784238,2.54369952,2192.5,2191.4,0.22844]
[1770149784537,2.54369952,2192.8,2191.7,0.22841]
[1770149785539,2.54369952,2192.8,2191.2,0.22846]
[1770149786339,2.77199952,2192.8,2191.2,1.58785877]
[1770149786541,2.77199952,2192.8,2191.2,0.22846]
[1770149786934,2.68338512,2193.2,2191.2,0.22846]
[1770149786935,2.54369952,2192.6,2191.2,0.22846]
[1770149787240,2.77202952,2192.6,2191.1,0.00478188]
[1770149787740,2.54369952,2192.4,2191.1,0.00478188]
[1770149790040,2.77203952,2192.4,2191.1,0.00478188]
[1770149791339,2.54369952,2192.4,2191.4,0.22844]
[1770149792038,0.23364512,2193.2,2191.3,1.38203054]
[1770149792039,2.54369952,2193.1,2191.3,1.38203054]
[1770149792234,2.54369952,2193.1,2191.7,1.61248528]
[1770149792437,2.54369952,2193.1,2191.8,0.2284]
[1770149792934,2.54369952,2193.1,2191.1,0.00478188]
[1770149792935,2.54369952,2192.5,2191.1,0.00478188]
[1770149793132,2.54369952,2192.3,2191.1,0.00478188]
[1770149793334,2.54369952,2192.0,2191.1,0.00478188]
[1770149796044,2.54369952,2192.0,2190.7,4.1568744]
[1770149796239,2.54369952,2192.0,2190.6,4.06980584]
[1770149796641,2.77207952,2192.0,2190.6,8.22668024]
[1770149796841,2.77207952,2192.0,2190.5,4.06980584]
[1770149797039,2.77207952,2192.0,2190.5,4.07428561]
[1770149797244,2.54369952,2192.3,2191.2,0.22846]
[1770149797542,2.54369952,2192.3,2191.1,4.1680986]
[1770149797737,2.54369952,2192.3,2191.1,4.06980584]
[1770149797933,2.54369952,2192.3,2191.1,4.17816233]
[1770149798134,2.54369952,2192.3,2191.0,6.97628584]
[1770149799341,2.54369952,2192.3,2191.1,4.06980584]
[1770149799547,2.54369952,2192.3,2191.2,0.22846]
[1770149799743,2.54369952,2192.3,2191.2,4.29826584]
[1770149800343,2.54369952,2192.3,2191.3,4.06980584]
[1770149800843,2.54369952,2192.3,2191.4,0.22844]
[1770149801045,2.54369952,2192.6,2191.6,4.06980584]
[1770149801647,2.54369952,2192.6,2191.7,2.72369761]
[1770149802847,0.00538512,2193.2,2191.9,2.72369761]
[1770149803143,0.00538512,2193.2,2192.1,0.22836]
[1770149803342,0.00538512,2193.2,2192.1,2.95722262]
[1770149804747,0.00538512,2193.2,2192.2,2.72369761]
[1770149805046,2.54369952,2193.1,2192.2,2.72369761]
[1770149805941,2.54369952,2193.1,2192.3,2.72369761]
[1770149806143,2.54369952,2193.1,2192.2,6.90185994]
[1770149806342,2.54369952,2193.1,2192.2,2.72369761]
[1770149806544,2.54369952,2193.1,2192.2,4.64816137]
[1770149806750,2.54369952,2193.1,2192.4,2.72369761]
[1770149808150,2.54369952,2193.1,2192.3,5.40069761]
[1770149808448,2.54369952,2193.1,2192.1,2.72886262]
[1770149809058,2.54369952,2192.8,2191.6,4.06980584]
[1770149809246,2.54369952,2192.8,2191.7,2.43542931]
[1770149809446,2.54369952,2192.8,2191.7,4.17995219]
[1770149810048,2.54369952,2192.8,2191.7,0.00375984]
[1770149811350,2.77200952,2192.8,2191.7,0.00375984]
[1770149812451,2.46278979,2192.2,2191.2,4.06980584]
[1770149812650,2.46278979,2191.9,2190.8,4.06980584]
[1770149813149,2.46278979,2191.9,2190.7,2.677]
[1770149813346,2.46278979,2191.9,2190.7,5.02602341]
[1770149813544,2.46278979,2191.9,2190.8,6.49531661]
[1770149813746,2.46278979,2191.9,2190.9,2.34902341]
[1770149813948,2.46278979,2191.9,2190.8,4.1462932]
[1770149814350,2.46278979,2191.9,2190.8,6.50972544]
[1770149814547,2.46278979,2191.9,2191.0,2.36343224]
[1770149814753,2.5097454,2192.5,2191.2,4.06980584]
[1770149814952,2.5097454,2192.5,2191.2,9.11023808]
[1770149815153,2.5097454,2192.5,2191.3,4.14505223]
[1770149815350,2.5097454,2192.5,2191.3,8.21485807]
[1770149815550,2.5097454,2192.5,2191.4,4.14505223]
[1770149815847,2.5097454,2192.5,2191.3,6.50848447]
[1770149816050,2.5097454,2192.5,2191.1,4.29828584]
[1770149816249,2.5097454,2192.5,2191.2,2.36343224]
[1770149816853,2.5097454,2192.8,2191.6,2.36343224]
[1770149817050,2.5097454,2192.8,2191.7,5.04043224]
[1770149817348,2.5097454,2192.8,2191.8,2.36343224]
[1770149817753,2.5097454,2192.8,2191.8,4.14170781]
[1770149817955,2.5097454,2192.8,2191.8,2.677]
[1770149818152,2.5097454,2192.8,2191.9,2.36343224]
[1770149818355,0.00538512,2193.2,2192.3,2.36343224]
[1770149818652,0.00538512,2193.2,2192.4,5.04043224]
[1770149820353,0.00538512,2193.2,2192.5,2.36343224]
[1770149820555,2.5097454,2193.7,2192.6,2.36343224]
[1770149820754,0.05,2193.8,2192.8,2.36343224]
[1770149820955,0.05,2193.8,2192.9,2.677]
[1770149821160,2.677,2194.7,2192.9,2.677]
[1770149821161,2.5097454,2194.3,2193.1,2.36343224]
[1770149821350,2.5097454,2194.9,2193.6,2.36343224]
[1770149821554,2.5097454,2194.9,2193.2,9.50362634]
[1770149821555,0.00319978,2194.9,2193.8,6.66142808]
[1770149821757,2.51294518,2194.9,2193.8,10.79392242]
[1770149821956,2.51294518,2194.9,2193.9,4.13249434]
[1770149822260,2.51294518,2194.9,2193.9,0.00401597]
[1770149822650,0.00319978,2194.9,2193.9,2.36744821]
[1770149822959,0.00319978,2194.9,2194.1,2.36343224]
[1770149823152,6.76256978,2196.3,2194.1,2.36343224]
[1770149823153,2.5097454,2196.1,2194.6,2.36343224]
[1770149823353,2.73170996,2196.5,2195.2,2.36343224]
[1770149823559,2.73170996,2196.5,2195.3,5.04043224]
[1770149823757,1.16845161,2197.1,2195.3,5.04043224]
[1770149823758,2.5097454,2196.9,2195.7,2.36343224]
[1770149823959,4.107,2198.0,2195.9,2.36343224]
[1770149823960,2.5097454,2197.8,2195.9,2.36343224]
[1770149824259,2.87945282,2197.8,2195.9,0.00443922]
[1770149824461,2.5097454,2197.6,2195.9,0.00443922]
[1770149824655,2.5097454,2197.6,2195.9,2.36787146]
[1770149824855,2.5097454,2197.6,2195.9,0.00443922]
[1770149825262,2.5097454,2197.1,2195.1,2.36343224]
[1770149825452,2.5097454,2196.4,2195.0,2.676]
[1770149827058,2.5097454,2194.9,2193.1,2.36343224]
[1770149827256,2.5097454,2194.9,2193.3,2.36343224]
[1770149827858,2.5097454,2194.9,2193.3,2.59326571]
[1770149828557,2.5097454,2194.9,2193.5,2.36343224]
[1770149828863,2.5097454,2195.3,2193.7,2.59163224]
[1770149829554,0.0057429,2196.0,2193.4,2.36343224]
[1770149829862,2.5097454,2195.9,2193.8,2.59162224]
[1770149830063,2.5097454,2195.9,2194.2,2.36343224]
[1770149832358,2.7377254,2195.9,2194.2,2.36343224]
[1770149832963,0.22799,2195.8,2194.2,2.36343224]
[1770149833162,2.5097454,2195.7,2194.2,2.36343224]
[1770149833868,2.5097454,2195.7,2194.5,2.36343224]
[1770149834569,0.0057429,2196.0,2194.7,2.36343224]
[1770149834768,2.5154883,2196.0,2194.7,2.36343224]
[1770149835764,2.5154883,2196.0,2194.4,2.36343224]
[1770149836676,2.5154883,2196.0,2194.9,2.36343224]
[1770149837071,0.0057429,2196.0,2194.9,2.59151224]
[1770149837375,2.5097454,2196.8,2195.4,2.36343224]
[1770149837576,2.5097454,2196.8,2195.8,2.36343224]
[1770149837776,2.5097454,2197.2,2195.9,2.36343224]
[1770149838376,2.74163113,2197.2,2195.8,2.674]
[1770149838771,2.51379113,2197.2,2195.9,2.36343224]
[1770149839177,2.51379113,2197.2,2195.8,2.674]
[1770149839373,2.51379113,2197.2,2195.9,2.36343224]
[1770149839574,0.00404573,2197.2,2196.2,2.36343224]
[1770149839874,2.5097454,2197.9,2196.0,2.36343224]
[1770149840070,2.7375154,2197.9,2196.0,2.36343224]
[1770149840470,2.7375454,2197.6,2196.0,2.36343224]
[1770149840673,2.74228805,2197.6,2196.0,2.36343224]
[1770149841068,2.32997324,2197.4,2196.0,2.36343224]
[1770149841279,2.55779324,2197.4,2195.8,2.674]
[1770149841474,2.55779324,2197.4,2195.7,6.40361292]
[1770149841475,2.32997324,2197.4,2195.7,6.40361292]
[1770149841681,2.55785324,2196.9,2195.7,4.103]
[1770149842276,2.32997324,2196.9,2195.7,4.103]
[1770149842480,2.32997324,2196.9,2195.8,2.30061292]
[1770149842881,0.22782,2197.5,2195.8,2.30061292]
[1770149843078,2.32997324,2197.4,2195.9,2.30061292]
[1770149844081,2.32997324,2197.4,2196.1,2.52856292]
[1770149844582,0.00474265,2197.6,2196.5,2.30061292]
[1770149844882,0.00474265,2197.6,2196.5,2.30620511]
[1770149845083,2.33471589,2197.6,2196.5,0.00559219]
[1770149845977,2.56251589,2197.6,2196.5,0.00559219]
[1770149848076,0.00474265,2197.6,2196.7,2.30061292]
[1770149848281,0.00474265,2197.6,2196.7,2.52850292]
[1770149848480,2.32997324,2197.9,2196.9,2.30061292]
[1770149848679,2.32997324,2197.9,2196.5,0.00559219]
[1770149848680,2.32997324,2198.6,2196.7,9.07461292]
[1770149848882,0.36635586,2198.7,2196.7,6.40161292]
[1770149848883,2.32997324,2198.1,2196.7,6.40161292]
[1770149849079,2.32997324,2197.6,2196.7,4.101]
[1770149849281,2.55777324,2197.6,2196.5,0.00559219]
[1770149849482,2.32997324,2197.4,2196.5,0.00559219]
[1770149849681,2.55780324,2197.4,2196.0,2.30061292]
[1770149849980,2.32997324,2197.4,2196.2,2.30061292]
[1770149850181,2.32997324,2197.4,2196.2,2.52855292]
[1770149850581,2.32997324,2197.4,2196.2,0.004945]
[1770149851280,0.00512404,2197.6,2196.2,2.30555792]
[1770149851484,0.00512404,2197.6,2196.7,2.30061292]
[1770149851676,2.33509728,2197.6,2196.7,2.30061292]
[1770149851876,0.00512404,2197.6,2196.7,2.52850292]
[1770149852385,0.00512404,2197.6,2196.9,2.30061292]
[1770149852589,2.32997324,2198.3,2197.1,2.30061292]
[1770149853482,2.33337255,2198.3,2197.1,2.30061292]
[1770149854387,0.00339931,2198.3,2197.4,2.30061292]
[1770149855078,2.33337255,2198.3,2196.9,2.30061292]
[1770149855684,2.32997324,2198.0,2196.7,4.101]
[1770149855887,2.55774324,2198.0,2196.7,6.40161292]
[1770149856283,2.32997324,2198.0,2196.8,2.30061292]
[1770149856687,2.55773324,2198.0,2196.8,2.30061292]
[1770149857488,2.32997324,2198.0,2196.8,2.30061292]
[1770149857689,2.32997324,2198.0,2197.0,2.30061292]
[1770149857986,2.32997324,2198.0,2196.8,2.30061292]
[1770149857987,2.55773324,2198.0,2196.8,2.30061292]
[1770149858186,2.32997324,2197.8,2196.7,4.101]
[1770149858785,2.32997324,2197.6,2196.2,2.30555792]
[1770149859285,2.32997324,2197.4,2196.2,2.30555792]
[1770149860387,2.32997324,2197.8,2196.4,2.30061292]
[1770149860588,2.32997324,2197.8,2196.4,2.52853292]
[1770149860985,2.32997324,2197.8,2196.2,0.004945]
[1770149860986,2.32997324,2197.8,2196.6,2.52851292]
[1770149861191,2.32997324,2198.2,2196.8,2.30061292]
[1770149861392,2.32997324,2198.0,2196.8,2.30061292]
[1770149862194,2.32997324,2198.0,2197.0,2.30061292]
[1770149862389,0.00339931,2198.3,2197.4,0.22782]
[1770149862591,0.00339931,2198.3,2197.5,4.97161292]
[1770149862893,2.32997324,2199.2,2198.1,2.30061292]
[1770149863193,2.32997324,2199.5,2198.1,2.30061292]
[1770149863786,0.00496386,2199.5,2198.4,2.30061292]
[1770149863990,0.05,2200.1,2198.4,2.30061292]
[1770149863991,0.05,2200.1,2199.0,2.30061292]
[1770149864494,0.05,2200.1,2199.0,2.52826292]
[1770149864889,0.05567017,2200.1,2199.2,2.30061292]